bitfinex/quotes_ETHUSD_20241203
["timestamp","ask_amount","ask_price","bid_price","bid_amount"]
[1733240242469,0.55,3575.1,3574.6,2.79751]
[1733240242669,0.25853076,3575.0,3574.6,0.279751]
[1733240242871,1.312,3575.2,3574.7,2.79736]
[1733240243107,3.09110908,3575.1,3573.9,2.79805]
[1733240243345,0.67232623,3575.0,3573.5,3.0]
[1733240243547,3.50458754,3574.9,3573.4,1.958753]
[1733240243770,3.50458754,3574.9,3573.7,0.57349958]
[1733240243771,0.67232623,3574.8,3573.7,0.57349958]
[1733240243918,0.55,3574.6,3573.8,0.35734996]
[1733240244265,1.57113176,3575.2,3574.7,2.79741]
[1733240244417,0.41481621,3575.1,3574.7,2.79741]
[1733240244619,1.312,3575.2,3573.8,4.71136024]
[1733240244826,0.70905064,3575.1,3573.8,3.15541996]
[1733240245054,0.25926013,3575.0,3573.9,0.67289195]
[1733240245363,0.25913176,3574.9,3573.8,0.35734996]
[1733240245573,0.67408762,3574.8,3574.3,2.79767]
[1733240245858,0.55,3574.6,3573.8,0.35734996]
[1733240246018,0.25926013,3574.5,3574.4,2.79761]
[1733240246219,0.80926013,3574.5,3574.4,2.79761]
[1733240246417,0.25926013,3574.5,3574.4,2.79761]
[1733240246763,0.25926013,3574.5,3573.8,0.35734996]
[1733240246990,0.25926013,3574.4,3574.2,2.79781]
[1733240247136,0.55,3574.9,3574.2,0.279781]
[1733240247341,0.43162451,3575.5,3574.9,2.79722]
[1733240247539,0.43162451,3575.9,3575.2,1.6147]
[1733240247736,0.43162451,3575.9,3575.8,2.79657]
[1733240247971,2.91649165,3576.5,3575.5,2.79676]
[1733240247972,2.4852,3576.5,3575.5,2.79676]
[1733240248194,0.14569627,3577.0,3575.5,0.57345041]
[1733240248195,0.25976134,3576.4,3575.5,0.57345041]
[1733240248384,1.312,3576.6,3576.1,2.79629]
[1733240248691,0.25974759,3576.5,3575.9,2.79649]
[1733240248834,1.312,3576.6,3575.9,2.79649]
[1733240248835,0.67534593,3576.4,3575.9,2.79649]
[1733240249040,0.41559834,3576.3,3576.0,2.79639]
[1733240249235,0.55,3576.4,3576.0,2.79639]
[1733240249476,0.41550172,3576.3,3575.5,0.57345041]
[1733240249780,1.312,3576.6,3576.1,2.79633]
[1733240250091,0.41571946,3576.7,3576.6,2.79594]
[1733240251076,0.41542946,3577.7,3576.3,2.79613]
[1733240251077,0.41571946,3577.7,3576.3,2.79613]
[1733240251284,1.16269168,3577.8,3577.4,2.79532]
[1733240251641,1.16269168,3577.8,3577.1,2.79552]
[1733240251841,1.16269168,3577.8,3576.5,2.79602]
[1733240252056,1.16269168,3577.8,3576.4,7.35401028]
[1733240252057,1.16269168,3577.8,3577.3,2.79537]
[1733240252257,1.16269168,3577.8,3577.2,2.79541]
[1733240252485,1.16269168,3577.8,3576.6,1.01500303]
[1733240252666,1.16269168,3577.8,3576.2,1.894333]
[1733240252897,1.16269168,3577.8,3576.7,0.56680773]
[1733240253206,1.16269168,3577.8,3576.7,3.36259773]
[1733240253413,1.16269168,3577.8,3576.7,0.56680773]
[1733240253569,1.16269168,3577.8,3576.4,3.0]
[1733240253570,1.312,3577.4,3575.7,4.31768]
[1733240253904,0.55,3577.3,3576.6,2.79594]
[1733240254072,1.312,3577.4,3576.0,3.0]
[1733240254259,2.47469168,3577.8,3576.5,1.6331]
[1733240254474,2.47469168,3577.8,3577.2,2.79546]
[1733240254680,2.47469168,3577.8,3577.1,2.79548]
[1733240254879,2.47469168,3577.8,3577.1,0.56613596]
[1733240255106,2.47469168,3577.8,3577.4,2.79532]
[1733240255422,2.47469168,3577.8,3577.1,0.56613596]
[1733240255575,2.47469168,3577.8,3577.1,3.36168596]
[1733240255776,1.312,3577.8,3577.1,0.56613596]
[1733240255971,1.312,3577.8,3577.1,3.36167596]
[1733240256176,1.312,3577.8,3577.1,0.56613596]
[1733240256623,1.312,3577.8,3576.6,2.79589]
[1733240256808,1.312,3577.8,3576.7,2.79587]
[1733240257122,1.312,3577.8,3576.6,1.17830003]
[1733240257327,1.312,3577.8,3577.0,2.79561]
[1733240257682,1.312,3577.8,3576.8,2.79577]
[1733240257924,1.312,3577.8,3576.9,0.554212]
[1733240258648,0.55,3577.7,3575.9,1.5264]
[1733240258839,3.3451,3577.7,3576.6,2.79591]
[1733240259036,3.3451,3577.7,3576.0,0.7754818]
[1733240259037,0.55,3577.7,3577.0,2.79563]
[1733240259190,1.312,3577.8,3577.0,2.79563]
[1733240259394,1.312,3577.8,3576.7,1.5264]
[1733240259605,1.312,3577.8,3577.4,2.7953]
[1733240260010,0.40395885,3578.4,3576.7,1.5264]
[1733240260011,0.14582552,3578.4,3576.7,1.5264]
[1733240260324,0.14582552,3578.4,3576.8,0.48706078]
[1733240260530,0.14582552,3578.4,3577.0,2.79561]
[1733240260852,0.55,3577.8,3577.0,2.79562]
[1733240260997,2.79478,3578.1,3577.0,2.79562]
[1733240261194,0.55,3578.2,3576.7,0.55809996]
[1733240261559,1.312,3578.3,3575.6,2.79668]
[1733240261560,2.79588,3576.7,3575.6,2.79668]
[1733240261701,0.55,3576.8,3575.3,1.6605]
[1733240261702,0.55,3576.8,3575.7,0.279668]
[1733240261902,0.55,3576.8,3576.0,0.5482518]
[1733240262405,0.55,3576.6,3575.4,2.79681]
[1733240262640,2.79612,3576.4,3575.4,2.79681]
[1733240262820,0.55,3576.2,3574.8,1.6275]
[1733240263151,0.55,3576.0,3574.8,0.55345566]
[1733240263302,1.312,3575.7,3574.8,3.13242057]
[1733240263649,0.55,3575.6,3574.8,0.33508057]
[1733240263943,0.55,3575.6,3574.6,0.5702423]
[1733240264118,3.34676,3575.6,3574.5,2.79752]
[1733240264443,1.312,3575.7,3574.5,0.5727603]
[1733240264599,1.312,3575.7,3574.8,2.79728]
[1733240264799,1.312,3575.7,3574.9,2.79727]
[1733240265001,1.312,3575.7,3574.9,3.076937]
[1733240265434,1.312,3575.7,3575.1,2.79711]
[1733240265634,1.312,3575.7,3574.9,0.279727]
[1733240265842,1.312,3575.7,3574.5,0.5727603]
[1733240266003,1.312,3575.7,3574.7,2.79739]
[1733240266202,1.312,3575.7,3575.0,2.79718]
[1733240266403,1.312,3575.7,3574.7,2.7974]
[1733240266639,0.55,3575.6,3574.5,0.5727603]
[1733240267040,0.55,3575.6,3574.7,2.79743]
[1733240267243,0.55,3575.6,3574.5,0.5727603]
[1733240267456,0.55,3575.6,3574.6,2.79751]
[1733240267746,0.55,3575.6,3574.6,0.33702703]
[1733240268105,2.79692,3575.4,3574.5,0.5727603]
[1733240268313,2.79692,3575.4,3573.7,1.5768]
[1733240268314,2.79748,3574.7,3573.7,1.5768]
[1733240268627,0.03496799,3574.6,3573.5,2.79831]
[1733240268928,1.312,3574.5,3573.5,2.79831]
[1733240269112,1.312,3574.5,3573.1,2.79869]
[1733240269113,1.312,3574.5,3573.6,2.79829]
[1733240269316,1.312,3574.5,3573.0,1.5768]
[1733240269317,0.55,3574.3,3573.0,1.5768]
[1733240269529,0.55,3574.1,3573.1,2.79868]
[1733240269715,0.55,3574.2,3573.1,2.79868]
[1733240269943,0.55,3574.2,3572.5,1.5397]
[1733240269944,0.55,3574.0,3573.4,0.56250331]
[1733240270163,0.55,3574.0,3572.7,2.84310451]
[1733240270472,0.55,3574.2,3573.1,2.79861]
[1733240270632,3.34789,3574.2,3573.1,2.79861]
[1733240271018,1.34697773,3574.1,3573.1,0.55242461]
[1733240271316,2.79889,3572.9,3572.0,0.5672627]
[1733240271519,0.55,3572.6,3572.0,0.5672627]
[1733240271718,0.55,3572.6,3571.5,0.56362317]
[1733240271719,0.58498938,3572.6,3571.5,0.56362317]
[1733240271956,0.58498938,3572.6,3571.2,4.37107]
[1733240272159,0.58498938,3572.6,3571.5,0.56718916]
[1733240272160,0.55,3572.6,3571.5,0.56718916]
[1733240272365,1.312,3572.7,3572.3,2.79931]
[1733240272518,1.312,3572.7,3571.5,0.56718916]
[1733240272714,1.312,3573.7,3572.4,2.7992]
[1733240272918,0.55,3573.6,3572.5,2.79915]
[1733240273157,0.55,3573.6,3571.6,2.79986]
[1733240273158,0.55,3573.6,3572.4,0.56730119]
[1733240273461,3.55,3573.6,3572.4,3.36646119]
[1733240273660,0.55,3573.0,3572.4,0.56730119]
[1733240273968,3.0,3573.5,3572.4,0.56730119]
[1733240274261,1.312,3573.7,3572.4,0.56730119]
[1733240274560,0.03497963,3573.6,3571.7,1.5432]
[1733240274742,0.03497963,3573.6,3571.4,4.35401028]
[1733240274743,1.312,3573.5,3571.4,4.35401028]
[1733240275073,1.312,3573.5,3571.9,2.79962]
[1733240275074,2.79866,3573.2,3571.9,2.79962]
[1733240275233,1.312,3573.1,3572.0,2.79954]
[1733240275420,0.55,3573.0,3572.0,2.79954]
[1733240275968,0.55,3573.0,3571.9,0.55805902]
[1733240276126,0.55,3573.0,3572.0,2.79952]
[1733240276324,0.55,3573.0,3572.1,2.79946]
[1733240276661,0.55,3573.0,3571.9,0.55805902]
[1733240276662,2.79892,3572.8,3571.9,0.55805902]
[1733240276956,0.55,3572.7,3571.8,2.79969]
[1733240277207,0.55,3573.0,3571.5,0.5485928]
[1733240277365,0.55,3572.8,3571.5,0.5485928]
[1733240277566,0.55,3572.8,3571.5,1.33776908]
[1733240278106,0.55,3572.8,3571.7,2.79974]
[1733240278251,3.34894,3572.8,3571.7,2.79974]
[1733240278758,3.34894,3572.8,3571.7,2.79978]
[1733240279513,3.34894,3572.8,3571.8,2.79965]
[1733240279514,0.55,3572.8,3571.8,2.79965]
[1733240279704,0.55,3572.8,3572.0,2.79954]
[1733240279906,0.55,3572.8,3572.2,2.79939]
[1733240280211,1.312,3572.9,3572.3,2.79931]
[1733240280496,1.312,3572.9,3571.9,4.30062]
[1733240280822,1.312,3572.9,3572.6,2.79906]
[1733240281007,1.312,3572.9,3572.1,2.79942]
[1733240281151,1.312,3572.9,3570.9,7.15435028]
[1733240281152,0.03498469,3572.8,3571.2,2.80017]
[1733240281358,4.11085,3572.9,3571.4,2.80002]
[1733240281554,4.11085,3572.9,3571.3,1.02472729]
[1733240281555,0.55,3572.8,3571.3,1.02472729]
[1733240281984,1.312,3572.9,3572.5,2.79914]
[1733240282154,1.312,3572.9,3571.8,1.5711]
[1733240282355,1.312,3574.3,3572.0,3.0]
[1733240282610,1.312,3574.3,3572.7,0.55966897]
[1733240283093,2.79799,3574.0,3572.9,2.79879]
[1733240283326,1.312,3574.1,3572.3,3.0]
[1733240283456,1.312,3574.1,3573.1,2.79868]
[1733240283650,4.10991,3574.1,3572.6,2.799]
[1733240283897,3.0,3574.0,3572.6,2.799]
[1733240284100,1.312,3574.1,3572.6,0.5599276]
[1733240284269,1.312,3574.1,3572.8,4.5963]
[1733240284458,1.312,3574.1,3573.1,2.79869]
[1733240284661,1.312,3574.5,3573.1,2.79869]
[1733240284898,1.312,3574.5,3574.4,2.79767]
[1733240285169,1.16269168,3575.0,3573.7,0.56962113]
[1733240285170,0.03496847,3574.9,3573.7,0.56962113]
[1733240285414,2.83231847,3574.9,3573.7,3.36783113]
[1733240285598,0.03496847,3574.9,3573.7,3.36783113]
[1733240285756,1.312,3574.8,3573.8,2.79812]
[1733240285953,1.312,3574.8,3573.6,2.79828]
[1733240286154,1.312,3574.4,3573.3,2.79846]
[1733240286470,1.312,3574.4,3572.9,1.5783]
[1733240286471,0.55,3574.3,3572.9,1.5783]
[1733240286669,0.55,3573.8,3572.7,2.79895]
[1733240286882,0.25762056,3574.7,3572.1,1.17247403]
[1733240286883,1.862,3573.6,3572.2,2.79939]
[1733240287082,1.862,3573.6,3572.3,0.3971864]
[1733240287292,1.862,3573.6,3572.1,1.17247403]
[1733240287456,0.03498234,3573.5,3572.1,1.17247403]
[1733240287655,0.55,3573.2,3571.9,2.79956]
[1733240287907,0.55,3572.7,3571.1,1.5372]
[1733240288112,0.55,3572.3,3570.4,4.389237]
[1733240288449,0.55,3572.1,3571.1,3.37171622]
[1733240288611,1.312,3572.6,3571.1,0.57152622]
[1733240288612,0.03499548,3572.5,3571.1,0.57152622]
[1733240288757,0.55,3571.7,3570.9,2.80039]
[1733240288957,0.58499793,3571.7,3570.4,0.03522672]
[1733240289161,0.55,3571.7,3570.8,0.57191845]
[1733240289395,0.55,3571.7,3570.4,0.31883739]
[1733240289596,0.55,3571.7,3570.7,2.80049]
[1733240289815,0.55,3571.7,3570.4,0.31883739]
[1733240289816,0.55,3571.1,3570.4,0.03522672]
[1733240290012,0.55,3570.9,3570.0,2.80108]
[1733240290196,0.03500815,3570.8,3570.0,0.560237]
[1733240290397,0.03500815,3570.8,3569.1,2.80176]
[1733240290398,0.55,3570.6,3569.1,1.5967]
[1733240290727,1.312,3570.3,3569.1,1.5967]
[1733240290893,0.03501275,3570.2,3567.9,1.5518]
[1733240291084,0.55,3570.1,3568.8,0.5612169]
[1733240291277,1.312,3570.3,3569.0,2.80183]
[1733240291278,0.55,3569.9,3569.0,2.80183]
[1733240291476,0.55,3570.2,3569.3,2.80162]
[1733240291902,0.55,3570.2,3569.4,2.80158]
[1733240292101,0.55,3570.2,3569.1,0.33630469]
[1733240292102,0.55,3570.2,3569.2,2.80174]
[1733240292326,0.55,3570.0,3568.8,2.80206]
[1733240292522,0.03501707,3569.9,3568.9,2.80196]
[1733240292681,0.55,3569.8,3568.7,0.55286729]
[1733240292881,1.312,3570.3,3568.7,0.55286729]
[1733240292882,1.312,3570.3,3569.0,4.35401028]
[1733240293106,0.55,3570.2,3569.5,2.80145]
[1733240293451,1.312,3570.3,3568.9,4.45164]
[1733240293452,1.312,3570.3,3568.9,1.6497]
[1733240293729,1.312,3570.3,3569.8,2.80126]
[1733240293937,1.312,3570.3,3569.9,2.80116]
[1733240294526,1.312,3570.3,3568.9,1.6497]
[1733240294697,1.312,3570.3,3569.8,2.80124]
[1733240295054,1.862,3571.2,3569.4,0.55281125]
[1733240295187,1.56930105,3571.2,3570.6,2.80063]
[1733240295386,1.312,3571.2,3570.1,2.80099]
[1733240295688,1.312,3571.2,3570.1,0.27335419]
[1733240295909,0.61752182,3572.0,3571.1,2.80025]
[1733240295910,0.25730105,3571.6,3571.1,2.80025]
[1733240296132,1.312,3571.6,3571.4,2.79998]
[1733240296329,1.312,3572.1,3571.5,2.79994]
[1733240296625,0.25768263,3572.0,3571.6,2.79986]
[1733240296821,1.312,3572.1,3571.7,2.79978]
[1733240297358,0.25771893,3572.3,3572.0,2.79955]
[1733240297653,1.312,3572.5,3572.4,2.79923]
[1733240297975,1.312,3572.5,3571.7,0.279978]
[1733240298254,1.312,3572.5,3572.0,2.79947]
[1733240298486,1.312,3572.5,3571.4,0.55890158]
[1733240298746,1.312,3572.5,3571.9,2.7996]
[1733240298953,0.258156,3572.4,3571.7,2.79978]
[1733240299251,1.312,3572.5,3570.6,6.00981028]
[1733240299252,0.80828255,3572.3,3570.6,6.00981028]
[1733240299456,0.55,3572.1,3571.0,2.8003]
[1733240299613,0.55,3571.9,3570.5,0.55671552]
[1733240299825,0.25828255,3571.8,3570.7,2.80057]
[1733240300062,0.55,3571.9,3570.6,4.35401028]
[1733240300356,0.25827279,3571.8,3571.5,2.79994]
[1733240300656,1.312,3572.0,3571.9,2.79963]
[1733240301253,1.312,3572.5,3572.4,2.79923]
[1733240301458,1.51874481,3572.5,3571.4,2.8]
[1733240301612,0.620196,3572.4,3571.4,2.79997]
[1733240301810,1.312,3572.5,3570.9,2.80041]
[1733240301811,0.620196,3572.3,3570.9,2.80041]
[1733240302053,0.25841953,3572.2,3571.0,0.68612023]
[1733240302366,0.25841953,3572.2,3571.0,3.48645023]
[1733240302858,0.80841953,3572.1,3571.2,2.80017]
[1733240303156,0.25850301,3572.0,3571.2,3.0]
[1733240303457,0.03499105,3572.4,3571.3,3.75901305]
[1733240303613,0.46549975,3572.3,3571.5,2.79986]
[1733240303808,0.87918967,3572.2,3571.7,2.79978]
[1733240304013,0.33054418,3572.4,3571.1,3.0]
[1733240304014,0.87923762,3572.1,3571.8,2.79963]
[1733240304253,1.312,3572.5,3572.2,2.79932]
[1733240304468,0.46547383,3572.4,3571.4,0.55409687]
[1733240304753,1.312,3572.5,3572.4,2.79923]
[1733240304958,1.57062285,3572.5,3572.1,2.79944]
[1733240305157,0.25862285,3572.4,3572.1,2.79944]
[1733240305310,1.312,3572.5,3571.6,2.79986]
[1733240305311,0.25862285,3572.3,3571.6,2.79986]
[1733240305511,1.312,3572.5,3571.5,0.33541769]
[1733240305853,1.312,3572.5,3571.4,3.55409687]
[1733240305854,0.25853705,3572.4,3572.3,2.79931]
[1733240306027,0.20680153,3572.8,3572.6,2.79904]
[1733240306364,0.25854008,3572.7,3571.8,2.79963]
[1733240306655,0.46533029,3572.6,3572.1,2.79947]
[1733240306812,0.25854008,3572.5,3572.0,0.56070994]
[1733240307013,0.25854008,3572.4,3572.0,3.36017994]
[1733240307365,1.312,3572.9,3572.0,0.56070994]
[1733240307515,0.87869239,3572.8,3572.0,0.56070994]
[1733240307852,0.25843061,3572.7,3572.6,2.79903]
[1733240308213,1.312,3572.9,3572.0,0.56070994]
[1733240308409,0.50023331,3572.8,3570.7,0.49107258]
[1733240308652,1.312,3572.6,3570.9,2.80041]
[1733240308821,0.55,3572.4,3571.5,2.79991]
[1733240309027,0.55,3572.2,3571.8,2.79969]
[1733240309232,0.55,3572.2,3570.8,1.5947]
[1733240309233,0.25846754,3572.1,3571.0,0.55245987]
[1733240309550,0.55,3572.5,3571.5,2.7999]
[1733240309748,0.55,3572.3,3571.5,2.7999]
[1733240309931,0.25859793,3572.2,3571.8,2.79966]
[1733240310267,1.64299776,3572.6,3571.0,0.55245987]
[1733240310268,0.25859793,3572.1,3571.6,2.79985]
[1733240310414,0.58954917,3572.5,3572.4,2.79923]
[1733240310614,0.46553325,3572.5,3572.1,2.79941]
[1733240310849,0.25862736,3572.4,3571.9,2.79962]
[1733240311014,1.312,3572.6,3571.6,0.56355389]
[1733240311015,0.25862736,3572.3,3571.6,0.56355389]
[1733240311213,0.62054203,3572.5,3571.6,0.56355389]
[1733240311413,0.25856763,3572.4,3572.3,2.79931]
[1733240311636,1.312,3572.6,3572.3,2.79931]
[1733240311837,0.2585711,3572.5,3572.3,2.79931]
[1733240312046,1.312,3572.6,3572.3,2.79931]
[1733240312224,0.58962475,3573.1,3571.7,5.79975]
[1733240312225,1.9326114,3573.0,3571.7,3.0]
[1733240312447,1.312,3573.0,3571.9,2.79963]
[1733240312645,1.312,3573.0,3572.9,2.79884]
[1733240312957,1.312,3573.0,3572.6,2.79907]
[1733240313152,0.25858918,3572.9,3572.6,2.79905]
[1733240313461,1.312,3573.0,3572.8,2.79891]
[1733240313618,1.312,3573.0,3572.4,0.55212368]
[1733240313619,0.20692294,3573.3,3573.1,2.79862]
[1733240313815,0.25866214,3573.2,3573.1,2.79862]
[1733240314118,0.41391411,3573.7,3572.6,7.15309028]
[1733240314432,1.312,3573.9,3573.7,2.79818]
[1733240314644,1.312,3573.9,3572.7,0.9360014]
[1733240314645,0.25886061,3573.8,3573.4,2.79838]
[1733240314855,1.312,3573.9,3573.4,2.79839]
[1733240315058,0.25887797,3573.8,3573.2,2.79861]
[1733240315368,0.25887797,3573.7,3573.0,2.79876]
[1733240315568,1.312,3573.9,3573.0,0.61557069]
[1733240315721,1.15718912,3574.0,3573.0,0.61557069]
[1733240315722,1.15718912,3574.0,3573.9,2.79806]
[1733240316061,0.41442973,3574.1,3573.6,2.79829]
[1733240316361,0.41442973,3574.1,3573.7,2.79822]
[1733240316563,0.41442973,3574.2,3573.9,2.79799]
[1733240316864,1.312,3574.4,3573.6,2.79829]
[1733240317063,0.4664696,3574.8,3574.4,2.79762]
[1733240317263,2.88381912,3574.9,3573.9,2.79806]
[1733240317473,2.88381912,3574.9,3573.1,8.74809028]
[1733240317474,0.55282906,3574.8,3573.3,2.79853]
[1733240317770,1.57093116,3574.7,3574.0,2.79798]
[1733240318472,1.60590206,3574.7,3573.3,0.56061416]
[1733240318624,0.25893116,3574.6,3573.9,2.79799]
[1733240318825,0.25893116,3574.6,3573.4,2.79845]
[1733240319129,1.312,3574.7,3574.0,2.79791]
[1733240319525,0.03496923,3574.6,3573.3,3.35909416]
[1733240319841,1.312,3574.7,3573.4,2.79845]
[1733240320143,1.312,3574.7,3573.8,2.79807]
[1733240320342,0.58497277,3574.6,3573.5,2.7983]
[1733240320543,0.58497277,3574.6,3573.6,2.79822]
[1733240320544,0.55,3574.6,3573.6,2.79822]
[1733240320782,1.312,3574.7,3573.6,0.33588342]
[1733240321077,1.312,3574.7,3573.8,2.79814]
[1733240321267,1.312,3574.7,3573.6,0.33588342]
[1733240321470,1.312,3574.7,3573.9,2.79806]
[1733240321625,1.312,3574.7,3573.6,0.33588342]
[1733240321626,1.312,3574.7,3573.7,3.0]
[1733240321826,1.312,3574.7,3574.0,0.56705607]
[1733240322346,1.312,3575.4,3574.0,2.20585607]
[1733240322550,1.312,3575.4,3575.0,2.79718]
[1733240322747,1.312,3575.4,3574.6,4.35401028]
[1733240322983,0.55674901,3575.7,3575.6,2.79673]
[1733240323621,0.55674901,3575.7,3575.4,2.79686]
[1733240323889,0.55674901,3575.7,3575.1,3.0]
[1733240323890,0.55674901,3575.7,3575.5,2.79678]
[1733240324047,0.55674901,3575.7,3575.1,2.79712]
[1733240324374,0.55674901,3575.7,3575.5,2.79681]
[1733240324686,0.55674901,3575.7,3574.9,4.6281]
[1733240324687,0.55674901,3575.7,3575.3,2.79696]
[1733240324893,1.312,3575.9,3575.5,2.79677]
[1733240325287,1.312,3575.9,3575.6,2.79668]
[1733240325499,1.312,3576.3,3574.9,4.6281]
[1733240325649,1.312,3576.3,3575.6,2.79672]
[1733240325841,1.312,3576.3,3575.1,2.79707]
[1733240325842,1.312,3576.3,3575.2,3.0]
[1733240326047,1.312,3576.3,3575.2,2.79699]
[1733240326242,1.312,3576.3,3575.7,2.79664]
[1733240326444,1.312,3576.3,3575.8,2.7965]
[1733240326673,1.312,3576.3,3575.7,2.79664]
[1733240326877,1.312,3577.1,3575.2,3.0]
[1733240327184,1.312,3577.1,3575.6,2.79669]
[1733240327390,0.03495018,3577.3,3575.2,3.0]
[1733240327391,1.312,3576.9,3575.2,3.0]
[1733240327592,2.7959,3576.7,3575.2,3.0]
[1733240327794,0.03495419,3576.6,3575.2,3.0]
[1733240327954,0.03495419,3576.6,3575.5,2.79673]
[1733240328157,1.312,3576.5,3575.5,2.79673]
[1733240329185,0.0349542,3576.4,3575.2,5.79696]
[1733240329386,0.0349542,3576.4,3574.9,4.42533]
[1733240329589,0.0349542,3576.4,3575.2,2.79697]
[1733240329889,0.0349542,3576.4,3574.9,1.6281]
[1733240329890,2.79673,3575.7,3574.5,2.79757]
[1733240330104,1.312,3575.5,3574.5,2.79757]
[1733240330471,1.312,3575.5,3574.8,2.79728]
[1733240330715,1.312,3575.5,3574.6,2.79751]
[1733240330861,1.312,3575.5,3574.6,2.7975]
[1733240331202,1.312,3576.4,3574.9,2.79723]
[1733240331417,1.312,3576.4,3574.6,6.13986028]
[1733240331704,1.312,3576.4,3574.9,2.79728]
[1733240331857,1.312,3576.4,3575.2,2.79702]
[1733240331858,0.03495453,3576.3,3575.2,2.79702]
[1733240332062,4.10814,3576.4,3574.7,3.0]
[1733240332063,1.312,3576.4,3574.7,3.0]
[1733240332375,1.312,3576.4,3574.8,0.91398603]
[1733240332580,1.312,3576.4,3575.0,3.0]
[1733240332888,1.312,3576.4,3575.7,2.79659]
[1733240333259,1.312,3576.4,3575.2,3.0]
[1733240333475,1.312,3576.4,3575.4,3.0]
[1733240333835,1.312,3576.4,3575.3,3.0]
[1733240333836,0.58495396,3576.3,3575.3,3.0]
[1733240334116,1.312,3576.4,3575.8,2.79656]
[1733240334289,1.312,3576.4,3575.6,2.7967]
[1733240334483,1.312,3576.4,3575.4,3.0]
[1733240334685,1.312,3576.4,3575.6,2.79671]
[1733240334916,1.312,3576.4,3575.1,3.0]
[1733240335390,4.10817,3576.4,3575.4,3.0]
[1733240335591,1.312,3576.4,3574.9,3.0]
[1733240335916,1.312,3576.4,3575.3,3.0]
[1733240336117,1.312,3576.4,3576.2,2.79624]
[1733240336322,1.312,3576.8,3576.2,2.79624]
[1733240336476,1.312,3576.8,3575.6,4.35401028]
[1733240336681,0.46441971,3577.2,3576.1,4.35401028]
[1733240336682,1.312,3577.2,3576.1,4.35401028]
[1733240336875,1.312,3577.2,3576.0,3.0]
[1733240337095,1.312,3577.2,3575.8,2.79657]
[1733240337096,1.312,3577.2,3576.3,2.79612]
[1733240337376,1.312,3577.2,3576.4,2.79605]
[1733240337583,1.312,3577.2,3576.2,2.79625]
[1733240338110,1.77646714,3577.2,3576.4,2.79609]
[1733240338282,1.312,3577.2,3576.4,2.79609]
[1733240338478,1.312,3577.2,3576.2,2.79619]
[1733240338682,1.77648589,3577.2,3576.2,2.79619]
[1733240338926,1.77655789,3577.2,3576.2,2.79619]
[1733240339126,1.312,3577.2,3575.7,3.0]
[1733240339286,0.25808364,3577.1,3576.2,2.79623]
[1733240339487,0.25808364,3577.1,3575.8,3.53197103]
[1733240339488,0.25808364,3577.1,3575.9,3.0]
[1733240339730,1.77655789,3577.2,3575.8,0.73540103]
[1733240339887,1.77655789,3577.2,3575.9,3.0]
[1733240340087,0.25808364,3577.1,3575.9,3.0]
[1733240340404,1.34694573,3577.0,3575.4,1.6453]
[1733240340589,1.312,3576.2,3574.9,1.5924]
[1733240340784,1.312,3576.7,3576.4,2.79609]
[1733240341036,0.25808364,3576.8,3575.8,1.5013]
[1733240341187,1.312,3577.1,3576.4,2.7961]
[1733240341188,0.25837686,3577.0,3576.4,2.7961]
[1733240341387,1.312,3577.1,3575.8,5.85531028]
[1733240341388,1.51847425,3577.1,3575.8,5.85531028]
[1733240341589,1.312,3577.1,3575.9,0.58553103]
[1733240341886,3.05392652,3577.0,3575.8,3.0]
[1733240342130,3.05392652,3577.0,3575.1,2.7971]
[1733240342131,1.312,3576.8,3574.9,1.5101]
[1733240342285,2.79609,3576.5,3575.4,2.79683]
[1733240342486,0.55,3576.3,3574.9,4.30736]
[1733240342716,1.312,3575.7,3574.3,5.98271028]
[1733240342940,2.79681,3575.5,3574.4,3.78763023]
[1733240343088,2.8318733,3575.4,3574.4,3.78763023]
[1733240343288,2.79691,3575.4,3573.9,2.79806]
[1733240343515,0.25856432,3575.3,3574.2,2.79775]
[1733240343834,1.312,3575.1,3573.8,5.52654546]
[1733240344039,1.312,3575.1,3574.1,2.79783]
[1733240344238,1.312,3575.1,3574.8,2.79735]
[1733240344400,1.312,3575.1,3574.2,3.89784546]
[1733240344731,1.57074478,3575.5,3575.4,2.79688]
[1733240344940,0.33057459,3576.0,3575.5,2.79675]
[1733240344941,1.98470967,3575.9,3575.5,2.79675]
[1733240345122,0.25874714,3575.8,3575.0,3.89784546]
[1733240345428,0.46589422,3575.7,3575.3,2.79689]
[1733240345584,0.46589422,3575.6,3575.1,2.79705]
[1733240345788,0.25892659,3575.5,3575.2,0.279705]
[1733240346042,0.25892659,3575.4,3575.3,2.79696]
[1733240346272,0.46612338,3575.4,3575.3,2.79696]
[1733240346541,1.77812338,3575.4,3574.6,3.0]
[1733240346720,1.312,3575.8,3575.4,2.79685]
[1733240347028,1.312,3576.8,3575.7,2.79665]
[1733240347334,1.312,3576.5,3574.8,3.0]
[1733240347530,1.312,3576.5,3575.5,2.79675]
[1733240347739,1.21273104,3576.4,3575.5,2.79675]
[1733240347937,1.21273104,3576.3,3575.5,2.79675]
[1733240348232,1.88645922,3576.2,3575.6,2.79673]
[1733240348440,3.19845922,3576.1,3575.0,2.7972]
[1733240348592,1.88645922,3576.0,3575.4,2.79682]
[1733240348838,1.312,3576.1,3574.7,0.3]
[1733240348839,1.92141575,3575.9,3574.7,0.3]
[1733240349035,1.88645922,3575.8,3575.4,2.79681]
[1733240349385,1.8871224,3575.7,3575.4,2.79681]